lending/lending_fUSD_20241228
["ID","MTS","AMOUNT","RATE_DAILY","PERIOD"]
[346912161,1735366246765,-150.0,0.00012445,2]
[346912162,1735366246774,-150.0,0.00012447,2]
[346912163,1735366246783,-335.24200581,0.00012448,2]
[346912164,1735366246793,-178.70831697,0.00012448,2]
[346912165,1735366246803,-150.0,0.00012459,2]
[346912166,1735366246812,-1500.0,0.00012459,2]
[346912167,1735366246822,-335.24200581,0.00012462,2]
[346912168,1735366246831,-151.0,0.00012462,2]
[346912169,1735366246840,-151.0,0.00012462,2]
[346912170,1735366246849,-1107.384863,0.00012462,2]
[346912171,1735366246859,-1107.384863,0.00012462,2]
[346912172,1735366246871,-151.0,0.00012463,2]
[346912173,1735366246881,-151.0,0.00012463,2]
[346912174,1735366246890,-150.0,0.00012467,2]
[346912175,1735366246900,-150.0,0.00012472,2]
[346912176,1735366246910,-150.0,0.00012474,2]
[346912177,1735366246919,-335.24200581,0.00012475,2]
[346912178,1735366246929,-151.0,0.00012475,2]
[346912179,1735366246939,-428.943498,0.00012475,2]
[346912180,1735366246949,-428.943488,0.00012475,2]
[346912181,1735366246959,-150.0,0.00012478,2]
[346912182,1735366246968,-3075.32867499,0.00012484,2]
[346912183,1735366246978,-150.0,0.00012486,2]
[346912184,1735366246987,-335.24200581,0.00012488,2]
[346912185,1735366246996,-2285.776525,0.00012488,2]
[346912186,1735366247005,-2285.776525,0.00012488,2]
[346912187,1735366247014,-192.369693,0.00012488,2]
[346912188,1735366247024,-192.369693,0.00012488,2]
[346912189,1735366247033,-1310.923677,0.00012488,2]
[346912190,1735366247043,-1310.923677,0.00012488,2]
[346912191,1735366247053,-1877.218092,0.00012488,2]
[346912192,1735366247063,-1877.218092,0.00012488,2]
[346912193,1735366247073,-153.894827,0.00012488,2]
[346912194,1735366247082,-153.894827,0.00012488,2]
[346912195,1735366247091,-209.905487,0.00012488,2]
[346912196,1735366247101,-209.905487,0.00012488,2]
[346912197,1735366247111,-159.934535,0.00012488,2]
[346912198,1735366247121,-159.934535,0.00012488,2]
[346912199,1735366247130,-255.217398,0.00012488,2]
[346912200,1735366247139,-255.217398,0.00012488,2]
[346912201,1735366247149,-1787.413909,0.00012488,2]
[346912202,1735366247159,-1787.413909,0.00012488,2]
[346912203,1735366247169,-151.0,0.00012492,2]
[346912204,1735366247180,-1093.905693,0.00012492,2]
[346912205,1735366247190,-1093.905693,0.00012492,2]
[346912206,1735366247199,-1034.136055,0.00012492,2]
[346912207,1735366247209,-1034.136055,0.00012492,2]
[346912208,1735366247218,-10000.0,0.00012492,2]
[346912209,1735366247228,-10000.0,0.00012492,2]
[346912210,1735366247238,-150.0,0.00012496,2]
[346912211,1735366247248,-150.0,0.00012499,2]
[346912212,1735366247257,-335.24200581,0.00012501,2]
[346912213,1735366247267,-738.66,0.00012505,2]
[346912214,1735366247277,-2285.776525,0.00012507,2]
[346912215,1735366247287,-2285.776525,0.00012507,2]
[346912216,1735366247297,-192.369693,0.00012507,2]
[346912217,1735366247307,-192.369693,0.00012507,2]
[346912218,1735366247316,-1310.923677,0.00012507,2]
[346912219,1735366247325,-1310.923677,0.00012507,2]
[346912220,1735366247336,-1877.218092,0.00012507,2]
[346912221,1735366247347,-1877.218092,0.00012507,2]
[346912222,1735366247358,-153.894827,0.00012507,2]
[346912223,1735366247368,-153.894827,0.00012507,2]
[346912224,1735366247377,-209.905487,0.00012507,2]
[346912225,1735366247387,-209.905487,0.00012507,2]
[346912226,1735366247396,-159.934535,0.00012507,2]
[346912227,1735366247407,-159.934535,0.00012507,2]
[346912228,1735366247417,-255.217398,0.00012507,2]
[346912229,1735366247427,-255.217398,0.00012507,2]
[346912230,1735366247436,-1787.413909,0.00012507,2]
[346912231,1735366247446,-1787.413909,0.00012507,2]
[346912232,1735366247456,-164.683506,0.00012508,2]
[346912233,1735366247465,-151.0,0.00012508,2]
[346912234,1735366247474,-151.0,0.00012508,2]
[346912235,1735366247483,-151.0,0.00012508,2]
[346912236,1735366247493,-151.0,0.00012508,2]
[346912237,1735366247502,-256.115814,0.00012508,2]
[346912238,1735366247511,-151.0,0.00012508,2]
[346912239,1735366247521,-152.67587,0.00012508,2]
[346912240,1735366247530,-151.0,0.00012508,2]
[346912241,1735366247539,-151.0,0.00012508,2]
[346912242,1735366247549,-151.0,0.00012508,2]
[346912243,1735366247558,-151.0,0.00012508,2]
[346912244,1735366247567,-151.0,0.00012508,2]
[346912245,1735366247576,-360.725873,0.00012508,2]
[346912246,1735366247586,-360.725873,0.00012508,2]
[346912247,1735366247595,-154.563602,0.00012508,2]
[346912248,1735366247604,-154.563602,0.00012508,2]
[346912249,1735366247613,-154.563602,0.00012508,2]
[346912250,1735366247622,-154.563602,0.00012508,2]
[346912251,1735366247632,-162.23033,0.00012508,2]
[346912252,1735366247641,-162.23033,0.00012508,2]
[346912253,1735366247650,-162.23033,0.00012508,2]
[346912254,1735366247659,-162.23033,0.00012508,2]
[346912255,1735366247668,-151.0,0.00012508,2]
[346912256,1735366247678,-151.0,0.00012508,2]
[346912257,1735366247687,-151.0,0.00012508,2]
[346912258,1735366247696,-151.0,0.00012508,2]
[346912259,1735366247705,-235.391312,0.00012508,2]
[346912260,1735366247714,-265.713406,0.00012508,2]
[346912261,1735366247724,-265.713406,0.00012508,2]
[346912262,1735366247734,-265.713406,0.00012508,2]
[346912263,1735366247742,-265.713406,0.00012508,2]
[346912264,1735366247751,-151.0,0.00012508,2]
[346912265,1735366247761,-151.0,0.00012508,2]
[346912266,1735366247770,-151.0,0.00012508,2]
[346912267,1735366247779,-151.0,0.00012508,2]
[346912268,1735366247788,-151.0,0.00012508,2]
[346912269,1735366247796,-223.48222,0.00012508,2]
[346912270,1735366247806,-223.957203,0.00012508,2]
[346912271,1735366247815,-223.957203,0.00012508,2]
[346912272,1735366247823,-223.957203,0.00012508,2]
[346912273,1735366247833,-223.957203,0.00012508,2]
[346912274,1735366247842,-498.588786,0.00012508,2]
[346912275,1735366247851,-498.588786,0.00012508,2]
[346912276,1735366247860,-498.588786,0.00012508,2]
[346912277,1735366247869,-498.588786,0.00012508,2]
[346912278,1735366247878,-151.0,0.00012508,2]
[346912279,1735366247887,-184.702687,0.00012508,2]
[346912280,1735366247896,-498.588786,0.00012508,2]
[346912281,1735366247905,-498.588786,0.00012508,2]
[346912282,1735366247915,-498.588786,0.00012508,2]
[346912283,1735366247926,-498.588786,0.00012508,2]
[346912284,1735366247935,-223.722564,0.00012508,2]
[346912285,1735366247945,-223.722564,0.00012508,2]
[346912286,1735366247958,-223.722564,0.00012508,2]
[346912287,1735366247967,-223.722564,0.00012508,2]
[346912288,1735366247976,-246.251795,0.00012508,2]
[346912289,1735366247985,-223.722564,0.00012508,2]
[346912290,1735366247994,-223.722564,0.00012508,2]
[346912291,1735366248003,-223.722564,0.00012508,2]
[346912292,1735366248012,-151.0,0.00012508,2]
[346912293,1735366248022,-151.0,0.00012508,2]
[346912294,1735366248032,-223.722564,0.00012508,2]
[346912295,1735366248042,-151.0,0.00012508,2]
[346912296,1735366248051,-155.391282,0.00012508,2]
[346912297,1735366248061,-1107.384863,0.00012508,2]
[346912298,1735366248070,-1107.384863,0.00012508,2]
[346912299,1735366248080,-1107.384863,0.00012508,2]
[346912300,1735366248089,-1107.384863,0.00012508,2]
[346912301,1735366248099,-151.0,0.00012508,2]
[346912302,1735366248108,-151.0,0.00012508,2]
[346912303,1735366248118,-151.0,0.00012508,2]
[346912304,1735366248127,-151.0,0.00012508,2]
[346912305,1735366248136,-151.0,0.00012508,2]
[346912306,1735366248145,-151.0,0.00012508,2]
[346912307,1735366248155,-151.0,0.00012508,2]
[346912308,1735366248164,-151.0,0.00012508,2]
[346912309,1735366248173,-151.0,0.00012508,2]
[346912310,1735366248182,-155.667471,0.00012508,2]
[346912311,1735366248192,-2285.776525,0.00012508,2]
[346912312,1735366248201,-2285.776525,0.00012508,2]
[346912313,1735366248210,-2285.776525,0.00012508,2]
[346912314,1735366248220,-2285.776525,0.00012508,2]
[346912315,1735366248229,-2285.776525,0.00012508,2]
[346912316,1735366248238,-2285.77652,0.00012508,2]
[346912317,1735366248248,-192.369693,0.00012508,2]
[346912318,1735366248258,-192.369693,0.00012508,2]
[346912319,1735366248267,-192.369693,0.00012508,2]
[346912320,1735366248276,-192.369693,0.00012508,2]
[346912321,1735366248285,-192.369693,0.00012508,2]
[346912322,1735366248294,-192.369691,0.00012508,2]
[346912323,1735366248304,-1310.923677,0.00012508,2]
[346912324,1735366248313,-1310.923677,0.00012508,2]
[346912325,1735366248322,-1310.923677,0.00012508,2]
[346912326,1735366248331,-1310.923677,0.00012508,2]
[346912327,1735366248340,-1310.923677,0.00012508,2]
[346912328,1735366248349,-1310.923681,0.00012508,2]
[346912329,1735366248359,-1877.218092,0.00012508,2]
[346912330,1735366248369,-1877.218092,0.00012508,2]
[346912331,1735366248378,-1877.218092,0.00012508,2]
[346912332,1735366248387,-1877.218085,0.00012508,2]
[346912333,1735366248396,-153.894827,0.00012508,2]
[346912334,1735366248406,-153.894827,0.00012508,2]
[346912335,1735366248415,-153.894827,0.00012508,2]
[346912336,1735366248424,-153.894823,0.00012508,2]
[346912337,1735366248435,-209.905487,0.00012508,2]
[346912338,1735366248444,-209.905487,0.00012508,2]
[346912339,1735366248454,-209.905487,0.00012508,2]
[346912340,1735366248463,-209.905485,0.00012508,2]
[346912341,1735366248473,-159.934535,0.00012508,2]
[346912342,1735366248483,-159.934535,0.00012508,2]
[346912343,1735366248492,-159.934535,0.00012508,2]
[346912344,1735366248501,-159.934533,0.00012508,2]
[346912345,1735366248511,-255.217398,0.00012508,2]
[346912346,1735366248520,-255.217398,0.00012508,2]
[346912347,1735366248530,-255.217398,0.00012508,2]
[346912348,1735366248539,-255.217399,0.00012508,2]
[346912349,1735366248549,-1787.413909,0.00012508,2]
[346912350,1735366248559,-1787.413909,0.00012508,2]
[346912351,1735366248568,-1787.413909,0.00012508,2]
[346912352,1735366248577,-1787.413904,0.00012508,2]
[346912353,1735366248587,-151.0,0.00012508,2]
[346912354,1735366248597,-1093.905693,0.00012508,2]
[346912355,1735366248606,-1093.90569,0.00012508,2]
[346912356,1735366248616,-1034.136055,0.00012508,2]
[346912357,1735366248625,-1034.136048,0.00012508,2]
[346912358,1735366248634,-10000.0,0.00012508,2]
[346912359,1735366248644,-10000.0,0.00012508,2]
[346912360,1735366248654,-1691.33656044,0.0001251,2]
[346912361,1735366248663,-150.0,0.00012513,2]
[346912362,1735366248673,-335.24200581,0.00012514,2]
[346912363,1735366248683,-150.0,0.00012526,2]
[346912364,1735366248693,-335.24200581,0.00012527,2]
[346912365,1735366248702,-174.93691022,0.00012533,2]
[346912366,1735366248712,-150.0,0.00012533,2]
[346912367,1735366248721,-150.0,0.00012535,2]
[346912368,1735366248731,-1634.0,0.0001254,2]
[346912369,1735366248741,-150.0,0.0001254,2]
[346912370,1735366248750,-151.0,0.0001254,2]
[346912371,1735366248759,-1107.384863,0.0001254,2]
[346912372,1735366248768,-1107.384863,0.0001254,2]
[346912373,1735366248778,-335.24200581,0.0001254,2]
[346912374,1735366248787,-150.0,0.00012552,2]
[346912375,1735366248797,-335.24200581,0.00012553,2]
[346912376,1735366248806,-150.0,0.00012553,2]
[346912377,1735366248815,-150.0,0.00012556,2]
[346912378,1735366248825,-335.24200581,0.00012567,2]
[346912379,1735366248834,-150.0,0.00012567,2]
[346912380,1735366248843,-3075.32867499,0.00012568,2]
[346912381,1735366248852,-150.0,0.00012568,2]
[346912382,1735366248861,-150.0,0.0001257,2]
[346912383,1735366248871,-1691.33656044,0.00012575,2]
[346912384,1735366248880,-335.24200581,0.0001258,2]
[346912385,1735366248889,-150.0,0.0001258,2]
[346912386,1735366248899,-150.0,0.00012588,2]
[346912387,1735366248908,-150.0,0.00012591,2]
[346912388,1735366248917,-150.0,0.00012592,2]
[346912389,1735366248926,-335.24200581,0.00012593,2]
[346912390,1735366248977,-151.0,0.00012593,2]
[346912391,1735366248987,-154.563602,0.00012593,2]
[346912392,1735366248996,-154.563602,0.00012593,2]
[346912393,1735366249005,-150.0,0.00012594,2]
[346912394,1735366249015,-19918.14704314,0.000126,2]
[346912395,1735366249024,-502.870265,0.00012603,2]
[346912396,1735366249033,-502.13701053,0.00012603,2]
[346912397,1735366249042,-501.46888397,0.00012603,2]
[346912398,1735366249052,-150.0,0.00012603,2]
[346912399,1735366249061,-548.54803067,0.00012603,2]
[346912400,1735366249070,-191.12,0.00012603,2]
[346912401,1735366249079,-500.0,0.00012603,2]
[346912402,1735366249088,-597.60958937,0.00012603,2]
[346912403,1735366249097,-503.14082118,0.00012603,2]
[346912404,1735366249106,-507.65296643,0.00012603,2]
[346912405,1735366249116,-162.23033,0.00012604,2]
[346912406,1735366249125,-162.23033,0.00012604,2]
[346912407,1735366249134,-151.0,0.00012604,2]
[346912408,1735366249143,-223.409393,0.00012604,2]
[346912409,1735366249152,-265.713406,0.00012604,2]
[346912410,1735366249161,-265.713406,0.00012604,2]
[346912411,1735366249170,-151.0,0.00012604,2]
[346912412,1735366249183,-223.957203,0.00012604,2]
[346912413,1735366249191,-223.957203,0.00012604,2]
[346912414,1735366249201,-498.588786,0.00012604,2]
[346912415,1735366249210,-498.588786,0.00012604,2]
[346912416,1735366249219,-223.722564,0.00012604,2]
[346912417,1735366249228,-223.722564,0.00012604,2]
[346912418,1735366249237,-177.651781,0.00012604,2]
[346912419,1735366249246,-151.0,0.00012604,2]
[346912420,1735366249256,-150.0,0.00012604,2]
[346912421,1735366249265,-335.24200581,0.00012606,2]
[346912422,1735366249274,-174.93691017,0.00012606,2]
[346912423,1735366249283,-150.0,0.00012608,2]
[346912424,1735366249292,-151.0,0.00012608,2]
[346912425,1735366249302,-498.588786,0.00012608,2]
[346912426,1735366249311,-498.588786,0.00012608,2]
[346912427,1735366249321,-223.722564,0.00012608,2]
[346912428,1735366249331,-151.0,0.00012608,2]
[346912429,1735366249341,-223.722564,0.00012608,2]
[346912430,1735366249350,-1107.384863,0.00012608,2]
[346912431,1735366249359,-1107.384863,0.00012608,2]
[346912432,1735366249368,-151.0,0.00012608,2]
[346912433,1735366249378,-984.15,0.00012608,2]
[346912434,1735366249387,-150.0,0.00012616,2]
[346912435,1735366249395,-151.750815,0.00012619,2]
[346912436,1735366249405,-151.0,0.00012619,2]
[346912437,1735366249414,-156.971826,0.00012619,2]
[346912438,1735366249425,-151.0,0.00012619,2]
[346912439,1735366249435,-151.0,0.00012619,2]
[346912440,1735366249444,-151.0,0.00012619,2]
[346912441,1735366249454,-151.0,0.00012619,2]
[346912442,1735366249463,-223.817803,0.00012619,2]
[346912443,1735366249472,-360.725873,0.00012619,2]
[346912444,1735366249481,-360.725873,0.00012619,2]
[346912445,1735366249491,-154.563602,0.00012619,2]
[346912446,1735366249500,-154.563602,0.00012619,2]
[346912447,1735366249510,-335.24200581,0.00012619,2]
[346912448,1735366249519,-161.11933044,0.00012621,2]
[346912449,1735366249529,-150.0,0.00012621,2]
[346912450,1735366249538,-154.563602,0.00012631,2]
[346912451,1735366249547,-154.563602,0.00012631,2]
[346912452,1735366249556,-162.23033,0.00012631,2]
[346912453,1735366249565,-162.23033,0.00012631,2]
[346912454,1735366249575,-151.0,0.00012631,2]
[346912455,1735366249583,-265.713406,0.00012631,2]
[346912456,1735366249593,-265.713406,0.00012631,2]
[346912457,1735366249603,-151.0,0.00012631,2]
[346912458,1735366249613,-223.957203,0.00012631,2]
[346912459,1735366249623,-223.957203,0.00012631,2]
[346912460,1735366249633,-498.588786,0.00012631,2]
[346912461,1735366249642,-498.58879,0.00012631,2]
[346912462,1735366249651,-223.722564,0.00012631,2]
[346912463,1735366249662,-151.0,0.00012631,2]
[346912464,1735366249672,-223.722571,0.00012631,2]
[346912465,1735366249686,-1107.384863,0.00012631,2]
[346912466,1735366249697,-1107.384863,0.00012631,2]
[346912467,1735366249707,-151.0,0.00012631,2]
[346912468,1735366249717,-335.24200581,0.00012632,2]
[346912469,1735366249727,-151.0,0.00012633,2]
[346912470,1735366249736,-151.0,0.00012633,2]
[346912471,1735366249745,-151.0,0.00012633,2]
[346912472,1735366249755,-360.725873,0.00012633,2]
[346912473,1735366249764,-360.725873,0.00012633,2]
[346912474,1735366249774,-154.563602,0.00012633,2]
[346912475,1735366249784,-154.563602,0.00012633,2]
[346912476,1735366249793,-162.23033,0.00012633,2]
[346912477,1735366249802,-162.23033,0.00012633,2]
[346912478,1735366249811,-151.0,0.00012633,2]
[346912479,1735366249820,-265.713406,0.00012633,2]
[346912480,1735366249829,-265.713406,0.00012633,2]
[346912481,1735366249839,-223.957203,0.00012633,2]
[346912482,1735366249849,-223.957203,0.00012633,2]
[346912483,1735366249858,-151.0,0.00012633,2]
[346912484,1735366249867,-1107.384863,0.00012633,2]
[346912485,1735366249878,-1107.384863,0.00012633,2]
[346912486,1735366249887,-150.0,0.00012633,2]
[346912487,1735366249896,-150.0,0.00012635,2]
[346912488,1735366249905,-150.0,0.0001264,2]
[346912489,1735366249914,-1691.33656044,0.0001264,2]
[346912490,1735366249926,-335.24200581,0.00012645,2]
[346912491,1735366249935,-1500.0,0.00012646,2]
[346912492,1735366249946,-150.0,0.00012648,2]
[346912493,1735366249959,-150.0,0.00012648,2]
[346912494,1735366249967,-3075.32867499,0.00012651,2]
[346912495,1735366249976,-451.237239,0.00012655,2]
[346912496,1735366249986,-514.55805642,0.00012655,2]
[346912497,1735366249996,-224.77407679,0.00012655,2]
[346912498,1735366250006,-524.99,0.00012655,2]
[346912499,1735366250015,-500.0,0.00012655,2]
[346912500,1735366250025,-609.1456665,0.00012655,2]
[346912501,1735366250036,-643.90710554,0.00012655,2]
[346912502,1735366250045,-500.0,0.00012655,2]
[346912503,1735366250054,-631.78154232,0.00012655,2]
[346912504,1735366250064,-500.0,0.00012655,2]
[346912505,1735366250074,-500.0,0.00012655,2]
[346912506,1735366250083,-500.0,0.00012655,2]
[346912507,1735366250092,-500.0,0.00012655,2]
[346912508,1735366250102,-520.21606952,0.00012655,2]
[346912509,1735366250112,-500.0,0.00012655,2]
[346912510,1735366250122,-500.0,0.00012655,2]
[346912511,1735366250132,-500.0,0.00012655,2]
[346912512,1735366250142,-500.0,0.00012655,2]
[346912513,1735366250151,-517.07265122,0.00012655,2]
[346912514,1735366250161,-500.0,0.00012655,2]
[346912515,1735366250170,-694.82,0.00012655,2]
[346912516,1735366250179,-500.0,0.00012655,2]
[346912517,1735366250189,-500.0,0.00012655,2]
[346912518,1735366250198,-500.0,0.00012655,2]
[346912519,1735366250207,-500.0,0.00012655,2]
[346912520,1735366250216,-500.0,0.00012655,2]
[346912521,1735366250226,-493.32299688,0.00012655,2]
[346912522,1735366250235,-500.0,0.00012655,2]
[346912523,1735366250245,-500.0,0.00012655,2]
[346912524,1735366250254,-500.0,0.00012655,2]
[346912525,1735366250263,-500.0,0.00012655,2]
[346912526,1735366250272,-526.90702846,0.00012655,2]
[346912527,1735366250281,-614.59084948,0.00012655,2]
[346912528,1735366250291,-508.5561496,0.00012655,2]
[346912529,1735366250299,-516.7568654,0.00012655,2]
[346912530,1735366250308,-508.64275859,0.00012655,2]
[346912531,1735366250318,-154.563602,0.00012656,2]
[346912532,1735366250327,-154.563602,0.00012656,2]
[346912533,1735366250335,-162.23033,0.00012656,2]
[346912534,1735366250344,-162.23033,0.00012656,2]
[346912535,1735366250353,-151.0,0.00012656,2]
[346912536,1735366250362,-265.713406,0.00012656,2]
[346912537,1735366250371,-265.713406,0.00012656,2]
[346912538,1735366250380,-223.957203,0.00012656,2]
[346912539,1735366250391,-223.957203,0.00012656,2]
[346912540,1735366250400,-151.0,0.00012656,2]
[346912541,1735366250409,-1107.384863,0.00012656,2]
[346912542,1735366250418,-1107.38487,0.00012656,2]
[346912543,1735366250430,-151.0,0.00012658,2]
[346912544,1735366250439,-151.0,0.00012658,2]
[346912545,1735366250449,-184.734555,0.00012658,2]
[346912546,1735366250457,-154.563602,0.00012658,2]
[346912547,1735366250466,-154.56361,0.00012658,2]
[346912548,1735366250476,-162.23033,0.00012658,2]
[346912549,1735366250485,-162.23033,0.00012658,2]
[346912550,1735366250494,-151.0,0.00012658,2]
[346912551,1735366250504,-265.713406,0.00012658,2]
[346912552,1735366250514,-265.713406,0.00012658,2]
[346912553,1735366250524,-223.957203,0.00012658,2]
[346912554,1735366250533,-223.957203,0.00012658,2]
[346912555,1735366250543,-335.24200581,0.00012658,2]
[346912556,1735366250552,-150.0,0.00012662,2]
[346912557,1735366250561,-500.0,0.00012663,2]
[346912558,1735366250570,-500.0,0.00012663,2]
[346912559,1735366250579,-1685.34,0.00012663,2]
[346912560,1735366250588,-153.939526,0.00012663,2]
[346912561,1735366250598,-158.751718,0.00012663,2]
[346912562,1735366250607,-3463.972392,0.00012663,2]
[346912563,1735366250616,-2839.027431,0.00012663,2]
[346912564,1735366250626,-500.0,0.00012663,2]
[346912565,1735366250635,-500.0,0.00012663,2]
[346912566,1735366250643,-834.58,0.00012663,2]
[346912567,1735366250652,-500.0,0.00012663,2]
[346912568,1735366250661,-500.0,0.00012663,2]
[346912569,1735366250670,-513.02551744,0.00012663,2]
[346912570,1735366250681,-500.0,0.00012663,2]
[346912571,1735366250691,-500.0,0.00012663,2]
[346912572,1735366250700,-500.0,0.00012663,2]
[346912573,1735366250710,-500.0,0.00012663,2]
[346912574,1735366250719,-500.0,0.00012663,2]
[346912575,1735366250729,-500.0,0.00012663,2]
[346912576,1735366250740,-1122.81,0.00012663,2]
[346912577,1735366250752,-869.16,0.00012663,2]
[346912578,1735366250762,-508.66908143,0.00012663,2]
[346912579,1735366250774,-500.0,0.00012663,2]
[346912580,1735366250783,-2337.58,0.00012663,2]
[346912581,1735366250794,-151.0,0.00012664,2]
[346912582,1735366250805,-156.233687,0.00012664,2]
[346912583,1735366250815,-151.0,0.00012664,2]
[346912584,1735366250823,-151.0,0.00012664,2]
[346912585,1735366250832,-360.725873,0.00012664,2]
[346912586,1735366250841,-360.725873,0.00012664,2]
[346912587,1735366250850,-162.23033,0.00012664,2]
[346912588,1735366250859,-162.23034,0.00012664,2]
[346912589,1735366250870,-151.0,0.00012664,2]
[346912590,1735366250881,-265.713406,0.00012664,2]
[346912591,1735366250890,-265.713405,0.00012664,2]
[346912592,1735366250899,-509.46391453,0.00012664,2]
[346912593,1735366250909,-500.0,0.00012664,2]
[346912594,1735366250921,-500.0,0.00012664,2]
[346912595,1735366250931,-500.0,0.00012664,2]
[346912596,1735366250940,-500.0,0.00012664,2]
[346912597,1735366250949,-388.69956266,0.00012664,2]
[346912598,1735366250959,-513.33379803,0.00012664,2]
[346912599,1735366250971,-223.957203,0.00012664,2]
[346912600,1735366250980,-513.44557731,0.00012664,2]
[346912601,1735366250989,-223.957202,0.00012664,2]
[346912602,1735366250999,-150.0,0.00012664,2]
[346912603,1735366251010,-536.44,0.00012664,2]
[346912604,1735366251019,-373.68,0.00012664,2]
[346912605,1735366251028,-876.4,0.00012664,2]
[346912606,1735366251037,-500.0,0.00012664,2]
[346912607,1735366251047,-500.0,0.00012664,2]
[346912608,1735366251056,-500.0,0.00012664,2]
[346912609,1735366251065,-500.0,0.00012664,2]
[346912610,1735366251074,-151.0,0.00012665,2]
[346912611,1735366251083,-151.0,0.00012665,2]
[346912612,1735366251092,-155.511076,0.00012665,2]
[346912613,1735366251102,-151.0,0.00012665,2]
[346912614,1735366251112,-151.0,0.00012665,2]
[346912615,1735366251121,-151.0,0.00012665,2]
[346912616,1735366251131,-151.0,0.00012665,2]
[346912617,1735366251142,-360.725873,0.00012665,2]
[346912618,1735366251152,-360.725873,0.00012665,2]
[346912619,1735366251161,-360.725873,0.00012665,2]
[346912620,1735366251170,-360.725873,0.00012665,2]
[346912621,1735366251180,-550.88,0.00012665,2]
[346912622,1735366251189,-500.0,0.00012665,2]
[346912623,1735366251198,-150.0,0.00012671,2]
[346912624,1735366251208,-335.24200581,0.00012671,2]
[346912625,1735366251217,-150.0,0.00012675,2]
[346912626,1735366251227,-174.93691017,0.0001268,2]
[346912627,1735366251239,-335.24200581,0.00012685,2]
[346912628,1735366251248,-1226.02,0.00012688,2]
[346912629,1735366251259,-500.0,0.00012688,2]
[346912630,1735366251271,-155.66350197,0.00012688,2]
[346912631,1735366251281,-500.0,0.00012688,2]
[346912632,1735366251291,-1117.41,0.00012688,2]
[346912633,1735366251302,-500.0,0.00012688,2]
[346912634,1735366251311,-500.0,0.00012688,2]
[346912635,1735366251322,-500.0,0.00012688,2]
[346912636,1735366251331,-500.0,0.00012688,2]
[346912637,1735366251340,-500.0,0.00012688,2]
[346912638,1735366251349,-685.78,0.00012688,2]
[346912639,1735366251358,-500.0,0.00012688,2]
[346912640,1735366251367,-500.0,0.00012688,2]
[346912641,1735366251377,-710.82,0.00012688,2]
[346912642,1735366251386,-500.0,0.00012688,2]
[346912643,1735366251396,-500.0,0.00012688,2]
[346912644,1735366251408,-500.0,0.00012688,2]
[346912645,1735366251418,-500.0,0.00012688,2]
[346912646,1735366251431,-500.0,0.00012688,2]
[346912647,1735366251441,-500.0,0.00012688,2]
[346912648,1735366251451,-500.0,0.00012688,2]
[346912649,1735366251460,-1960.38,0.00012688,2]
[346912650,1735366251469,-500.0,0.00012688,2]
[346912651,1735366251478,-506.22,0.00012688,2]
[346912652,1735366251487,-150.0,0.00012689,2]
[346912653,1735366251496,-151.0,0.00012692,2]
[346912654,1735366251505,-1500.0,0.00012695,2]
[346912655,1735366251514,-335.24200581,0.00012698,2]
[346912656,1735366251524,-1500.0,0.00012701,2]
[346912657,1735366251533,-150.0,0.00012702,2]
[346912658,1735366251543,-150.0,0.00012704,2]
[346912659,1735366251552,-151.0,0.00012705,2]
[346912660,1735366251561,-360.725873,0.00012705,2]